bitfinex/quotes_ETHUSD_20230403
["timestamp","ask_amount","ask_price","bid_price","bid_amount"]
[1680509792284,2.26849,1805.1,1804.7,0.006]
[1680509792520,2.137,1804.9,1804.7,0.006]
[1680509792726,2.137,1804.9,1804.5,0.006]
[1680509792899,2.36660803,1804.9,1804.5,0.006]
[1680509793099,2.50511803,1804.9,1804.5,0.006]
[1680509793325,2.36660803,1804.9,1804.5,0.282]
[1680509793626,0.55598,1805.1,1804.5,6.70724]
[1680509793627,2.15,1805.1,1804.5,6.70724]
[1680509793922,3.0,1805.1,1804.7,0.83114]
[1680509794091,3.002,1805.2,1804.7,6.71015988]
[1680509794293,3.0,1805.2,1804.8,0.276]
[1680509794488,5.28848,1805.3,1804.8,6.152]
[1680509794919,5.28848,1805.3,1804.8,6.42903]
[1680509795302,5.151,1805.3,1804.8,6.15303]
[1680509795501,2.28948,1805.3,1804.8,6.15303]
[1680509795705,2.28948,1805.3,1804.8,6.42903]
[1680509795706,2.149,1805.3,1804.8,6.42903]
[1680509795907,2.28748,1805.3,1804.8,6.42903]
[1680509796313,2.28748,1805.3,1804.8,6.152]
[1680509797292,2.147,1805.1,1804.8,0.282]
[1680509798834,2.149,1804.9,1804.8,0.282]
[1680509799035,2.149,1804.9,1804.8,0.006]
[1680509799232,2.149,1804.9,1804.7,0.006]
[1680509799529,2.143,1804.8,1804.7,0.006]
[1680509799718,2.5302413,1804.8,1804.7,0.006]
[1680509799907,2.3917313,1804.8,1804.7,0.006]
[1680509800092,2.5302413,1804.8,1804.7,0.006]
[1680509800491,2.3917313,1804.8,1804.7,0.006]
[1680509800728,2.3917313,1804.8,1804.7,0.004]
[1680509800914,2.371151,1804.8,1804.6,0.006]
[1680509801116,2.147,1804.9,1804.6,0.006]
[1680509801695,2.28551,1804.9,1804.6,0.006]
[1680509802823,2.147,1804.9,1804.6,0.006]
[1680509803645,2.28551,1804.9,1804.6,0.006]
[1680509804437,2.56253,1804.9,1804.6,0.006]
[1680509804621,2.149,1804.7,1804.6,0.006]
[1680509804937,2.56457,1804.7,1804.6,0.006]
[1680509805140,2.56457,1804.7,1804.4,0.006]
[1680509805441,2.149,1804.5,1804.4,0.006]
[1680509806133,2.149,1804.6,1804.4,0.006]
[1680509806898,5.405253,1804.8,1804.4,0.00902039]
[1680509807094,0.5405253,1804.7,1804.4,0.28502039]
[1680509807300,2.143,1804.7,1804.4,0.28502039]
[1680509807600,2.143,1804.7,1804.4,0.00902039]
[1680509808398,2.28152,1804.7,1804.4,0.00902039]
[1680509808634,2.28152,1804.7,1804.4,0.00502039]
[1680509808837,2.28152,1804.7,1804.4,0.00702039]
[1680509809041,2.28152,1804.7,1804.4,0.00302039]
[1680509809042,0.228152,1804.6,1804.4,0.00302039]
[1680509809207,0.366682,1804.6,1804.4,0.00502039]
[1680509809401,0.002,1804.9,1804.4,0.00502039]
[1680509809734,0.002,1804.9,1804.4,0.00302039]
[1680509809735,3.43329728,1804.9,1804.4,0.00302039]
[1680509809935,2.28752,1804.7,1804.4,0.00902039]
[1680509810303,3.14052,1804.8,1804.4,0.00902039]
[1680509810574,3.13852,1804.8,1804.4,0.00902039]
[1680509810835,0.313852,1804.7,1804.4,0.006]
[1680509811037,2.878432,1804.7,1804.4,0.006]
[1680509811438,5.66619928,1804.7,1804.4,0.006]
[1680509811596,5.66819928,1804.7,1804.4,0.006]
[1680509811941,0.56681993,1804.6,1804.4,0.006]
[1680509813723,0.002,1804.7,1804.4,0.006]
[1680509813937,0.002,1804.8,1804.6,5.87]
[1680509814109,0.002,1805.2,1804.8,5.87]
[1680509814304,4.5807,1805.5,1804.9,6.70407955]
[1680509814539,0.45807,1805.4,1804.9,6.98607955]
[1680509814726,0.45807,1805.4,1805.0,0.276]
[1680509814727,0.59654,1805.4,1805.0,0.276]
[1680509815038,0.59654,1805.4,1804.9,0.00901955]
[1680509815039,0.45807,1805.4,1805.1,0.00301921]
[1680509815252,2.78776728,1805.3,1805.1,0.28501921]
[1680509815418,0.002,1805.4,1805.1,0.83097]
[1680509815611,0.01200001,1805.6,1805.1,0.27699]
[1680509815805,2.78776728,1805.5,1805.0,1.11001938]
[1680509816010,0.01200001,1805.6,1805.1,5.87]
[1680509816306,0.23650001,1805.6,1805.1,0.28298]
[1680509816605,0.23650001,1805.6,1805.1,0.28599921]
[1680509816800,0.23650001,1805.6,1805.1,0.83997921]
[1680509817020,0.01000001,1805.6,1805.2,0.55297]
[1680509817241,0.01000001,1805.6,1805.2,0.55897]
[1680509817443,0.01000001,1805.6,1805.2,0.282]
[1680509818512,2.78776728,1805.5,1805.2,0.55897]
[1680509818716,0.2505803,1805.4,1805.1,0.55899]
[1680509818915,0.0205803,1805.4,1805.1,0.55299]
[1680509819245,0.00203947,1805.1,1805.0,0.006]
[1680509819611,0.00203947,1805.1,1805.0,0.283]
[1680509819952,0.00203947,1805.1,1805.0,6.423]
[1680509820123,0.00203947,1805.1,1805.0,6.153]
[1680509820317,0.00203947,1805.1,1805.0,8.09104]
[1680509820648,0.00203947,1805.1,1805.0,17.91700728]
[1680509822351,0.00203947,1805.1,1805.0,17.92002666]
[1680509822535,0.00203947,1805.1,1805.0,20.92002666]
[1680509824329,0.01000001,1805.6,1805.1,0.00156415]
[1680509824537,0.01000001,1805.6,1805.3,5.87]
[1680509824743,0.01000001,1805.6,1805.5,5.87]
[1680509824943,0.01000001,1805.6,1805.5,6.14693]
[1680509825326,0.01000001,1805.6,1805.5,9.12579]
[1680509825865,0.01000001,1805.6,1805.5,11.91657583]
[1680509826917,0.11000001,1805.9,1805.5,11.91857583]
[1680509827144,0.11000001,1805.9,1805.8,8.019]
[1680509827346,0.11000001,1805.9,1805.8,15.74797532]
[1680509827549,0.11000001,1805.9,1805.8,16.02397532]
[1680509827744,0.11000001,1805.9,1805.8,13.23620804]
[1680509827945,0.11000001,1805.9,1805.8,11.08720804]
[1680509829518,0.11000001,1805.9,1805.8,16.00597532]
[1680509830966,0.11000001,1806.3,1805.9,6.87]
[1680509831259,0.11000001,1806.6,1806.5,7.80743]
[1680509831560,0.11000001,1806.6,1806.5,13.01719728]
[1680509831720,0.11000001,1806.6,1806.5,16.01719728]
[1680509832577,1e-08,1806.6,1806.5,16.01719728]
[1680509832716,1e-08,1806.6,1806.5,27.43679728]
[1680509832924,1e-08,1806.6,1806.5,28.34451566]
[1680509834337,1e-08,1806.6,1806.5,27.43679728]
[1680509834648,1e-08,1806.6,1806.5,27.43981415]
[1680509835025,1e-08,1806.6,1806.5,28.00222958]
[1680509835758,1e-08,1806.6,1806.5,32.00222958]
[1680509835936,1e-08,1806.6,1806.5,32.23222958]
[1680509837171,0.11000001,1807.7,1807.4,5.87]
[1680509837469,0.11000001,1807.7,1807.3,1.0]
[1680509837470,0.06000001,1807.7,1807.6,5.87]
[1680509837761,0.06000001,1807.7,1807.6,9.76357728]
[1680509837961,0.06000001,1807.7,1807.6,9.76659232]
[1680509838364,0.06000001,1807.7,1807.6,10.87302232]
[1680509838565,0.06000001,1807.7,1807.6,6.42561504]
[1680509838738,0.06000001,1807.7,1807.6,6.97882504]
[1680509838941,0.06000001,1807.7,1807.6,9.12782504]
[1680509839135,0.06000001,1807.7,1807.6,8.57461504]
[1680509840326,0.06000001,1807.7,1807.6,0.55561504]
[1680509840532,0.06000001,1807.7,1807.6,6.42561504]
[1680509841141,0.06000001,1807.7,1807.6,0.276]
[1680509841345,4.99676729,1807.7,1807.3,0.276]
[1680509841526,2.149,1807.5,1807.2,0.276]
[1680509841731,2.149,1807.5,1807.1,0.276]
[1680509842031,2.00967673,1807.6,1807.2,0.276]
[1680509842233,2.00967673,1807.6,1807.1,0.276]
[1680509842234,1.99967673,1807.6,1807.1,0.276]
[1680509842461,1.50767673,1807.6,1807.1,0.55268]
[1680509842628,0.15076767,1807.5,1807.1,0.55268]
[1680509842829,1.50767673,1807.6,1807.2,0.276]
[1680509843640,5.16076728,1807.5,1807.0,0.276]
[1680509843943,1.0,1807.4,1806.8,0.276]
[1680509844141,3.0205803,1807.4,1807.0,0.8301]
[1680509844351,4.0285803,1807.4,1806.8,1.38588637]
[1680509844561,4.0285803,1807.4,1806.9,0.276]
[1680509844562,1.59295833,1807.4,1806.9,0.276]
[1680509844873,1.45463833,1807.4,1806.9,0.276]
[1680509845079,1.45463833,1807.4,1806.9,0.5527]
[1680509845238,0.0265803,1807.4,1807.0,5.87]
[1680509845442,1.13831,1807.6,1807.0,0.276]
[1680509845648,6.06907728,1807.6,1807.0,0.276]
[1680509845870,0.01,1807.6,1807.0,3.34045728]
[1680509846069,0.06000001,1807.7,1807.2,5.87]
[1680509846070,0.06800001,1807.7,1807.2,5.87]
[1680509846272,0.06800001,1807.7,1807.3,0.82993]
[1680509846460,0.06000001,1807.7,1807.4,2.131]
[1680509846669,0.06000001,1807.7,1807.6,8.016]
[1680509846880,0.06000001,1807.7,1807.6,11.08036728]
[1680509847182,0.06000001,1807.7,1807.6,16.6415]
[1680509847380,0.0001262,1808.2,1807.5,0.002]
[1680509847591,3.52970733,1809.0,1807.7,4.47029267]
[1680509847743,3.52970733,1809.0,1807.9,0.82967]
[1680509847943,0.35297073,1809.0,1807.9,0.27656]
[1680509848175,0.0505579,1809.4,1808.0,9.0]
[1680509848375,0.003,1809.1,1808.5,9.0]
[1680509848580,0.87327341,1809.9,1808.6,2.78776728]
[1680509848581,0.92979551,1809.9,1808.6,2.78776728]
[1680509848889,0.5772242,1809.9,1808.7,9.0]
[1680509849248,0.49908,1810.0,1808.7,9.0]
[1680509849447,1.0,1809.6,1808.6,0.002]
[1680509849693,0.95,1809.1,1808.3,8.26023272]
[1680509849982,2.147,1808.4,1808.2,0.004]
[1680509850141,0.95,1808.7,1807.7,3.0]
[1680509850142,0.95,1808.3,1807.7,3.0]
[1680509850343,0.95,1808.1,1808.0,0.002]
[1680509850549,0.95,1807.9,1807.7,0.002]
[1680509850750,0.095,1807.8,1807.7,0.002]
[1680509850987,0.95,1807.7,1807.5,0.002]
[1680509851139,2.1695803,1807.6,1807.0,0.002]
[1680509851339,0.0205803,1807.6,1807.0,0.00301604]
[1680509851584,0.0205803,1807.6,1807.2,5.26023272]
[1680509851742,0.11763833,1807.6,1807.1,0.002]
[1680509851955,0.23,1807.7,1807.0,5.26023272]
[1680509852179,0.008,1807.7,1807.1,0.00301587]
[1680509852789,0.0285803,1807.7,1807.1,0.00301587]
[1680509853554,0.2585803,1807.7,1807.1,0.27901587]
[1680509853756,0.58443833,1807.7,1807.1,0.00301587]
[1680509854596,0.35443833,1807.7,1807.2,5.26023272]
[1680509854893,0.0285803,1807.7,1807.3,0.00301554]
[1680509855457,0.008,1807.7,1807.5,5.26023272]
[1680509855680,0.008,1807.8,1807.5,5.26023272]
[1680509855882,0.008,1807.8,1807.7,5.26023272]
[1680509856081,0.003,1808.3,1808.2,5.26023272]
[1680509856296,0.65908712,1808.8,1807.7,1.0]
[1680509856297,0.005,1808.5,1807.9,3.0]
[1680509856457,0.11000001,1808.8,1808.4,5.26023272]
[1680509856654,0.11000001,1808.8,1808.3,0.002]
[1680509856881,0.11000001,1808.8,1808.3,0.276]
[1680509857128,4.69421001,1808.8,1808.2,0.002]
[1680509857262,0.469421,1808.7,1808.2,5.26623272]
[1680509857463,0.13822,1808.7,1808.2,5.26023272]
[1680509858292,4.446,1808.6,1808.2,5.26023272]
[1680509858494,0.23,1808.5,1808.2,5.26023272]
[1680509858661,0.23,1808.5,1808.1,0.008]
[1680509858861,0.712222,1808.5,1807.9,5.26623272]
[1680509859173,3.482222,1808.5,1807.9,11.13623272]
[1680509859575,3.482222,1808.5,1807.9,11.13223272]
[1680509859770,3.482222,1808.5,1808.0,0.00301437]
[1680509859971,3.0,1808.5,1808.1,5.26023272]
[1680509860180,0.008,1808.6,1808.1,11.13023272]
[1680509860417,3.11800001,1808.8,1808.1,11.13023272]
[1680509860654,5.439,1808.7,1808.0,0.002]
[1680509860767,5.439,1808.7,1806.6,12.62287277]
[1680509860768,1.36476,1808.2,1807.5,5.26023272]
[1680509860962,1.36476,1808.2,1807.5,5.26623272]
[1680509860963,0.41484,1808.0,1807.5,5.26623272]
[1680509861170,3.0,1808.0,1807.5,5.26623272]
[1680509861563,3.13827,1808.0,1807.5,5.26623272]
[1680509861802,0.452107,1807.9,1807.5,5.26623272]
[1680509861987,0.1588503,1808.1,1807.6,0.00301504]
[1680509862313,3.0205803,1808.1,1807.6,0.00301504]
[1680509862600,0.1588403,1808.1,1807.6,0.00301504]
[1680509863107,4.701,1808.0,1807.4,0.008]
[1680509863308,3.88495,1807.9,1807.2,11.292]
[1680509863467,0.23,1807.8,1807.2,11.292]
[1680509863673,0.1383,1807.7,1807.2,11.292]
[1680509863885,0.1383,1807.7,1807.2,11.568]
[1680509864102,0.13828,1807.8,1807.2,11.292]
[1680509864408,0.499118,1807.8,1807.3,0.00301554]
[1680509865106,3.60838,1807.9,1807.3,2.79078282]
[1680509865294,3.60838,1807.9,1807.3,0.00501554]
[1680509865492,0.60838,1807.9,1807.5,5.26023272]
[1680509865702,0.006,1808.2,1807.9,5.26023272]
[1680509865904,0.11000001,1808.8,1808.0,2.78776728]
[1680509866225,0.11000001,1808.8,1808.5,5.26023272]
[1680509866419,0.11000001,1808.8,1808.7,5.26023272]
[1680509866717,0.11000001,1808.8,1808.7,8.60044]
[1680509866971,0.11000001,1808.8,1808.7,8.324]
[1680509867136,1e-08,1808.8,1808.7,12.6054532]
[1680509867417,0.50208,1810.0,1809.7,5.26023272]
[1680509867418,0.003,1809.8,1809.7,5.26023272]
[1680509867578,0.003,1809.8,1809.7,11.40651272]
[1680509867780,0.49908,1810.0,1809.9,5.26023272]
[1680509868216,0.49908,1810.0,1809.9,7.93799999]
[1680509868389,0.49908,1810.0,1809.9,7.9410112]
[1680509868790,0.49908,1810.0,1809.9,14.0872612]
[1680509869009,0.49908,1810.0,1809.9,8.2170112]
[1680509869430,0.28836492,1811.9,1811.0,2.78776728]
[1680509869583,0.006,1812.0,1811.1,5.15324192]
[1680509869785,1.13796,1812.1,1811.3,7.93799999]
[1680509869977,1.0,1812.1,1811.4,2.78776728]
[1680509870193,2.85276729,1812.5,1811.6,0.1868738]
[1680509870194,0.8131262,1812.4,1811.6,0.1868738]
[1680509870481,0.57625505,1812.7,1812.4,5.33710651]
[1680509870482,0.57925505,1812.7,1812.4,5.33710651]
[1680509870680,0.8131262,1813.3,1812.3,0.002]
[1680509870681,0.0205803,1812.9,1812.3,0.002]
[1680509870980,0.0205803,1812.9,1812.2,5.34310651]
[1680509870981,4.489,1812.6,1812.2,0.004]
[1680509871181,0.8131262,1811.9,1810.6,0.276]
[1680509871383,0.21929262,1811.8,1811.0,5.33710651]
[1680509871611,0.002,1812.0,1810.9,0.002]
[1680509871819,0.002,1812.0,1811.9,5.33710651]
[1680509872076,0.004,1812.8,1811.9,5.33710651]
[1680509872308,0.0205803,1812.7,1811.9,5.33710651]
[1680509872476,0.0265803,1812.7,1811.9,5.33710651]
[1680509872683,0.0205803,1812.7,1812.0,0.276]
[1680509872903,0.0205803,1812.7,1812.2,5.33710651]
[1680509873235,0.0205803,1812.7,1812.1,0.002]
[1680509873236,0.8131262,1812.6,1812.1,0.002]
[1680509873383,0.5,1812.4,1811.6,5.33710651]
[1680509873582,0.70379103,1812.4,1811.6,5.33710651]
[1680509873884,0.8131262,1812.3,1811.6,5.33710651]
[1680509874190,0.8131262,1812.3,1811.7,0.00300822]
[1680509874404,0.06585103,1812.4,1811.7,0.00300822]
[1680509874625,0.8131262,1812.6,1811.7,0.27900822]
[1680509874626,0.006,1812.6,1811.7,0.27900822]
[1680509874807,0.8191262,1812.8,1812.0,5.33710651]
[1680509875009,0.8397065,1812.8,1812.1,0.00300755]
[1680509875521,0.8397065,1812.8,1812.1,5.34011406]
[1680509875522,0.1584903,1812.8,1812.1,5.34011406]
[1680509875923,1.0,1812.7,1812.0,0.002]
[1680509876235,1.2585003,1812.6,1811.2,0.284]
[1680509876421,1.2585003,1812.6,1811.8,1.95781557]
[1680509876622,1.2585003,1812.6,1811.8,1.96082362]
[1680509876824,0.006,1812.8,1812.4,1.95781557]
[1680509877022,1.0195803,1813.0,1812.5,1.95781557]
[1680509877229,1.0135803,1813.0,1812.5,1.95781557]
[1680509877416,0.993,1813.0,1812.9,1.95781557]
[1680509877734,0.993,1813.0,1812.9,2.23381557]
[1680509878040,0.993,1813.0,1812.9,1.96082179]
[1680509878216,0.993,1813.0,1812.9,8.10682179]
[1680509878400,0.993,1813.0,1812.9,2.23682179]
[1680509879103,0.993,1813.0,1812.9,1.96082179]
[1680509879301,0.993,1813.0,1812.9,1.95781557]
[1680509879501,0.993,1813.0,1812.9,1.82502133]
[1680509880200,0.993,1813.0,1812.4,1.276]
[1680509880201,1.13089,1813.0,1812.4,0.002]
[1680509880406,0.993,1813.0,1812.5,0.276]
[1680509880614,0.993,1813.0,1812.9,1.68674133]
[1680509880907,0.993,1813.0,1812.9,1.96274133]
[1680509881100,0.993,1813.0,1812.9,1.68674133]
[1680509881300,0.993,1813.0,1812.5,0.276]
[1680509881541,0.993,1813.0,1812.9,1.68674133]
[1680509881715,0.993,1813.0,1812.7,0.00300656]
[1680509881912,0.993,1813.0,1812.5,1.68674133]
[1680509882444,0.0205803,1812.9,1812.5,1.68674133]
[1680509882618,0.12193833,1812.9,1812.5,1.68674133]
[1680509882814,0.993,1813.0,1812.6,5.87]
[1680509883021,0.993,1813.0,1812.9,7.55674133]
[1680509883247,0.993,1813.0,1812.9,1.68674133]
[1680509884044,1.0135803,1813.0,1812.3,0.002]
[1680509884345,0.993,1813.0,1812.9,1.68674133]
[1680509884845,0.993,1813.0,1812.9,8.11154755]
[1680509885046,0.3847556,1813.5,1812.9,8.11154755]
[1680509885344,0.3847556,1813.5,1813.4,1.68674133]
[1680509885508,0.3847556,1813.5,1813.4,7.55674133]
[1680509885862,0.3847556,1813.5,1813.4,7.83074133]
[1680509886301,0.41000001,1814.0,1813.4,0.274]
[1680509886509,0.41000001,1814.0,1813.9,7.55674133]
[1680509886708,0.41000001,1814.0,1813.9,7.78238133]
[1680509886910,0.41000001,1814.0,1813.9,8.05638133]
[1680509887114,0.41000001,1814.0,1813.9,8.01074133]
[1680509887309,0.41000001,1814.0,1813.9,8.28638133]
[1680509887547,0.13769,1815.7,1815.0,1.63674133]
[1680509887719,0.4834412,1815.4,1815.1,2.78776728]
[1680509887916,0.4834412,1815.4,1815.0,0.002]
[1680509887917,0.6211512,1815.4,1815.0,0.002]
[1680509888236,0.6211512,1815.4,1814.0,0.9435414]
[1680509888237,0.5,1815.1,1814.6,0.006]
[1680509888548,0.5,1815.1,1814.0,0.88010972]
[1680509888549,0.044,1814.3,1814.2,1.63674133]
[1680509888753,0.044,1814.3,1814.2,7.50674133]
[1680509889069,0.5274412,1814.3,1814.2,7.5117454]
[1680509889355,0.5274412,1814.3,1814.2,1.9157454]
[1680509889562,0.5274412,1814.3,1814.1,1.63674133]
[1680509889750,0.5274412,1814.3,1813.7,1.63674133]
[1680509889751,0.6652312,1814.3,1813.7,1.63674133]
[1680509889946,0.61454462,1814.3,1813.6,0.00300506]
[1680509890267,0.5274412,1814.3,1814.0,1.63674133]
[1680509890573,0.5274412,1814.3,1813.3,7.516]
[1680509890574,0.6652312,1814.3,1813.7,1.63674133]
[1680509890792,0.6652312,1814.3,1813.4,5.87]
[1680509890793,0.0205803,1814.2,1813.4,5.87]
[1680509891064,0.5040215,1814.2,1813.4,5.872]
[1680509891369,0.5040215,1814.2,1814.0,5.87]
[1680509891520,0.5040215,1814.2,1814.0,7.50874133]
[1680509891521,0.51739633,1814.1,1814.0,7.50874133]
[1680509891720,0.51739633,1814.1,1814.0,7.78274133]
[1680509891917,0.51739633,1814.1,1814.0,7.50874133]
[1680509892121,1.00083753,1814.1,1814.0,1.63874133]
[1680509892321,1.10092128,1814.1,1813.7,1.63974623]
[1680509892554,1.10092128,1814.1,1813.7,1.63674133]
[1680509892754,1.23873128,1814.1,1813.3,0.002]
[1680509892923,1.23873128,1814.1,1813.4,1.91074133]
[1680509893119,1.23873128,1814.1,1813.5,5.87]
[1680509893346,0.13782,1813.9,1813.6,5.87]
[1680509893552,0.26769313,1814.0,1813.7,1.63674133]
[1680509893748,0.12387313,1814.0,1813.6,5.872]
[1680509894055,0.75112433,1814.0,1813.6,0.002]
[1680509894247,0.74512433,1814.0,1813.7,1.63674133]
[1680509894490,0.07451243,1813.9,1813.5,0.002]
[1680509894787,0.74513433,1814.0,1813.4,0.274]
[1680509895083,0.1584003,1813.9,1813.3,1.90874133]
[1680509895286,0.1584003,1813.9,1813.4,5.87]
[1680509895495,0.1584003,1813.9,1813.4,6.146]
[1680509895712,0.1584003,1813.9,1813.4,0.276]
[1680509895869,0.22258445,1813.9,1813.2,1.63474133]
[1680509896210,3.49379293,1813.9,1813.2,1.63774706]
[1680509896356,3.49979293,1813.9,1813.2,7.50774706]
[1680509896556,3.01776728,1813.8,1813.2,1.63974706]
[1680509896865,0.1584203,1813.7,1812.9,1.91274133]
[1680509897079,0.1584203,1813.7,1812.8,1.91074133]
[1680509897080,3.01776728,1813.6,1812.8,1.91074133]
[1680509897282,0.13786,1813.4,1812.9,1.63474133]
[1680509897598,0.27571,1813.5,1812.9,7.50474133]
[1680509897599,0.0205803,1813.3,1812.9,7.50474133]
[1680509897771,0.006,1813.4,1813.0,8.65776728]
[1680509898106,0.55127,1814.0,1813.0,8.65776728]
[1680509898107,0.004,1814.0,1813.8,8.50474133]
[1680509898255,0.51939633,1814.1,1814.0,7.50474133]
[1680509898256,0.51739633,1814.1,1814.0,7.50474133]
[1680509898451,0.51739633,1814.1,1814.0,17.78237133]
[1680509898452,0.4834412,1814.1,1814.0,17.78237133]
[1680509898650,0.4834412,1814.1,1814.0,35.08413861]
[1680509898904,0.4834412,1814.1,1814.0,35.35813861]
[1680509899200,0.044,1814.3,1814.2,17.78034133]
[1680509899354,0.11000001,1814.6,1814.5,13.50474133]
[1680509899554,0.11000001,1814.6,1814.5,24.90340133]
[1680509899784,0.11000001,1814.6,1814.5,28.17740133]
[1680509900005,0.11000001,1814.6,1814.5,17.90340133]
[1680509900149,0.11000001,1814.6,1814.5,8.60740133]
[1680509900355,0.11000001,1814.7,1814.6,15.867182]
[1680509900606,0.002,1816.1,1815.9,7.50474133]
[1680509900815,0.006,1816.2,1815.9,10.29450861]
[1680509901056,1.0,1816.9,1816.1,5.87]
[1680509901336,1.0,1816.9,1816.0,3.06176728]
[1680509901337,0.002,1816.8,1816.5,1.63474133]
[1680509901535,0.002,1816.8,1816.6,2.78776728]
[1680509901824,0.002,1817.2,1816.7,4.42250861]
[1680509901990,0.004,1817.7,1816.8,2.83494928]
[1680509902194,0.902818,1817.4,1816.8,0.006]
[1680509902390,0.902818,1816.5,1816.2,0.006]
[1680509902608,0.13762,1816.5,1816.2,0.006]
[1680509902836,8.92795438,1816.8,1816.0,1.57774036]
[1680509902837,0.902818,1816.1,1816.0,1.57774036]
[1680509902979,0.902818,1816.1,1815.1,10.0]
[1680509902980,0.900818,1815.7,1815.4,0.006]
[1680509903180,1.038518,1815.5,1815.2,0.006]
[1680509903417,0.0900818,1815.6,1814.8,1.73392333]
[1680509903620,0.900818,1815.4,1814.7,1.73392333]
[1680509903781,0.900818,1815.4,1814.5,0.274]
[1680509903782,1.85227202,1816.8,1815.1,1.73392333]
[1680509904115,0.20028181,1817.3,1816.4,1.73392333]
[1680509904317,0.20028181,1817.3,1816.1,3.349]
[1680509904318,0.11000001,1817.3,1816.8,1.73392333]
[1680509904522,0.002,1817.3,1816.8,1.73392333]
[1680509904750,0.900818,1817.7,1816.8,1.73392333]
[1680509904751,0.900818,1817.7,1817.1,5.87]
[1680509904935,0.00402685,1817.9,1817.1,0.004]
[1680509904936,0.900818,1817.5,1817.1,0.004]
[1680509905139,0.900818,1817.0,1816.5,0.006]
[1680509905357,0.0900818,1816.9,1816.4,1.382]
[1680509905651,0.0900818,1816.9,1816.3,0.002]
[1680509905652,0.0205803,1816.9,1816.3,0.002]
[1680509905813,0.0205803,1816.9,1816.1,1.73992333]
[1680509906012,0.900818,1816.6,1815.8,1.382]
[1680509906214,0.13761,1816.7,1815.7,0.006]
[1680509906215,0.4129,1816.4,1815.7,0.006]
[1680509906445,0.13763,1816.4,1815.8,0.00300142]
[1680509906651,0.13759,1817.0,1816.1,1.73392333]
[1680509906958,0.006,1817.5,1816.7,5.87]
[1680509907174,0.900818,1817.8,1816.7,0.002]
[1680509907311,0.900818,1817.0,1816.7,0.002]
[1680509907516,0.900818,1816.7,1816.1,0.006]
[1680509907831,0.0205803,1816.6,1816.1,0.006]
[1680509908032,0.900818,1816.2,1815.5,0.006]
[1680509908239,0.68813,1816.5,1815.5,0.006]
[1680509908240,0.5505,1816.5,1815.5,0.006]
[1680509908550,0.002,1816.7,1816.2,1.73392333]
[1680509908712,0.900818,1816.7,1815.9,0.006]
[1680509908918,0.900818,1816.7,1815.9,1.73392333]
[1680509908919,1.038428,1816.7,1815.9,1.73392333]
[1680509909139,0.00298252,1816.9,1816.1,1.73392333]
[1680509909354,1.038438,1816.6,1815.9,0.006]
[1680509909556,0.900818,1816.4,1815.6,0.006]
[1680509909874,0.13765,1816.2,1815.4,0.006]
[1680509910016,0.13764,1816.3,1815.7,1.73692492]
[1680509910217,0.27723,1816.7,1816.4,1.73392333]
[1680509910218,0.002,1816.7,1816.4,1.73392333]
[1680509910477,0.002,1816.7,1816.0,1.73992333]
[1680509910478,0.13761,1816.7,1816.0,1.73992333]
[1680509910778,0.2414528,1816.7,1816.0,1.73392333]
[1680509910952,0.2414528,1816.7,1816.1,0.00300093]
[1680509911266,8.10681479,1817.2,1816.1,0.00300093]
[1680509911267,0.002,1817.1,1816.2,0.099182]
[1680509911480,0.900818,1817.4,1816.1,1.0]
[1680509911656,0.13756,1817.3,1816.7,1.73392333]
[1680509911861,0.0205803,1817.2,1816.6,1.73392333]
[1680509912175,0.900818,1817.0,1816.4,1.73392333]
[1680509912321,0.00424314,1816.6,1816.4,1.73392333]
[1680509912927,0.14186314,1816.6,1816.2,0.006]
[1680509913129,0.14186314,1816.6,1815.9,1.376]
[1680509913130,0.41285,1816.6,1815.9,1.376]
[1680509913348,0.41285,1816.6,1815.8,1.73392333]
[1680509913549,0.900818,1816.5,1815.9,0.099182]
[1680509913762,0.900818,1816.5,1815.2,2.376]
[1680509913763,0.0900818,1816.4,1815.6,0.006]
[1680509913966,0.0900818,1816.4,1815.3,0.002]
[1680509913967,0.41295,1816.2,1815.3,0.006]
[1680509914149,0.41295,1816.2,1815.2,0.006]
[1680509914466,0.41295,1816.2,1815.4,1.73392333]
[1680509914467,1.313768,1816.2,1815.4,1.73392333]
[1680509914622,1.313768,1816.2,1815.2,0.006]
[1680509914623,3.41295,1816.2,1815.6,1.73392333]
[1680509914824,0.341295,1816.1,1815.3,0.006]
[1680509915031,0.2753,1816.2,1815.6,1.73392333]
[1680509915321,0.13766,1816.1,1815.6,1.73392333]
[1680509915552,0.13765,1816.1,1815.6,1.73392333]
[1680509916128,0.13765,1816.1,1815.5,0.00300192]
[1680509916325,0.00589111,1816.0,1815.5,0.00300192]
[1680509916557,0.13767,1815.9,1815.5,1.73692525]
[1680509916866,0.02647141,1816.0,1815.6,1.73392333]
[1680509917065,0.00589111,1816.0,1815.2,2.382]
[1680509917358,0.13765,1816.2,1815.5,1.0]
[1680509917661,0.27525,1816.5,1816.1,1.73392333]
[1680509917958,0.13763,1816.4,1816.2,1.73392333]
[1680509918160,0.13763,1816.4,1815.8,0.006]
[1680509918361,0.13763,1816.4,1816.2,1.73392333]
[1680509918566,0.13764,1816.4,1815.9,1.73392333]
[1680509918942,0.13764,1816.4,1815.7,1.382]
[1680509918943,0.13764,1816.4,1815.7,1.73992333]
[1680509919157,0.233981,1816.4,1815.7,1.73392333]
[1680509919340,0.0205803,1816.3,1815.7,1.73392333]
[1680509919674,0.13765,1816.2,1815.7,1.73392333]
[1680509919895,0.13765,1816.2,1815.5,0.006]
[1680509919896,0.68825,1816.2,1815.6,0.006]
[1680509920107,0.68825,1816.2,1815.3,0.006]
[1680509920252,0.298825,1816.1,1815.3,0.006]
[1680509920451,0.96371,1815.9,1815.3,0.006]
[1680509920642,2.78776728,1815.8,1815.1,1.376]